Cogmind - Beta 16.1 @@@ ROGUE MODE // 2026.03.24 @ 19:20:02 Player: Thqwib-Linux Result: Smashed by cave-in Performance ------------- Evolutions (0) 0 Regions Visited (2) 400 Robots Destroyed (22) 110 Value Destroyed (674) 674 Prototype IDs (2) 40 Alien Tech Used (0) 0 Bonus (0) 0 TOTAL SCORE: 1224 Bonus ------- None Cogmind --------- Core Integrity 0/250 Matter 260/300 Energy 170/170 System Corruption 7% Temperature Cool (0) Movement Walking (140) Location -10/Subcaves Parts ------- > --- POWER (1) -------- Makeshift Power Source > --- PROPULSION (2) --- Makeshift Leg > --- UTILITY (2) ------ Medium Storage Unit Subdweller Optics > --- WEAPON (2) ------- Grenade Launcher > --- INVENTORY (10) --- Subdweller Power Source Subdweller Power Source Subdweller Power Source Aluminum Leg Aluminum Leg Large Storage Unit Subdweller Laser Subdweller Beam Cannon Autogun Autogun Peak State ------------ > --- POWER ------------ Makeshift Power Source > --- PROPULSION ------- Aluminum Leg Makeshift Leg > --- UTILITY ---------- Medium Storage Unit Subdweller Optics > --- WEAPON ----------- Autogun Autogun > --- INVENTORY -------- Subdweller Power Source Subdweller Power Source Subdweller Power Source Aluminum Leg Aluminum Leg Large Storage Unit Subdweller Laser Subdweller Beam Cannon Autogun Grenade Launcher [Rating: 17] Favorites ----------- Power Ion Engine Engine Ion Engine Propulsion Aluminum Leg Leg Aluminum Leg Utility Medium Storage Unit Device Heat Sink Storage Medium Storage Unit Protection Medium Armor Plating Weapon Autogun Energy Gun Medium Laser Ballistic Gun Autogun Launcher Grenade Launcher Build | -11 -10 -10 ------- Run | Yrd Mat Sub Slots Evolved . | . . . Power . | . . . Propulsion . | . . . Utility . | . . . Weapon . | . . . Parts Attached 25 | . 13 12 Power 7 | . 2 5 Engine 7 | . 2 5 Core . | . . . Reactor . | . . . Propulsion 5 | . 3 2 Treads . | . . . Leg 5 | . 3 2 Wheel . | . . . Hover . | . . . Flight . | . . . Utility 5 | . 3 2 Device 2 | . 1 1 Storage 2 | . 2 . Processor . | . . . Hackware . | . . . Protection 1 | . . 1 Artifact . | . . . Weapon 8 | . 5 3 Energy Gun 2 | . 1 1 Energy Cannon . | . . . Ballistic Gun 5 | . 4 1 Ballistic Cannon . | . . . Launcher 1 | . . 1 Special Weapon . | . . . Impact Weapon . | . . . Slashing Weapon . | . . . Piercing Weapon . | . . . Special Melee Weapon . | . . . Unidentified Prototypes . | . . . Parts Lost 7 | . 3 4 Power 1 | . 1 . Propulsion 2 | . 1 1 Utility 2 | . . 2 Weapon 2 | . 1 1 Highest Loss Streak 2 | . 1 2 To Critical Strikes . | . . . Average Backups 9 | 3 8 9 Power 2 | 1 2 2 Propulsion 1 | 1 1 2 Utility 1 | . 1 1 Weapon 3 | 1 3 4 Tool/Special . | . . . Unused Backups 13 | . 6 7 Power 3 | . 2 1 Propulsion 5 | . 3 2 Utility 2 | . 1 1 Weapon 3 | . . 3 Tool/Special . | . . . Average Slot Usage (%) 92 | . 87 99 Engine 13 | . 13 14 Leg 27 | . 27 28 Device 3 | . 2 4 Storage 14 | . 14 14 Protection 3 | . . 9 Energy Gun 7 | . 9 5 Ballistic Gun 19 | . 18 21 Peak Build Rating 17 | 6 10 17 Average Rating 9 | 6 7 12 On Entrance 7 | 6 6 10 Avg Prop Armor Cover (%) . | . . . Naked Turns . | . . . Heaviest Build 29 | 14 23 29 Greatest Support 30 | 20 20 30 Greatest Overweight (x) 2 | . 2 1 Average Overweight (x) . | . . . Largest Inventory Capacity 10 | 8 10 10 Average Capacity 9 | 8 9 10 Most Carried 10 | 5 10 10 Average Carried 9 | 2 8 9 Final Capacity 10 | 8 10 10 Final Carried 10 | 2 10 10 Class Distribution -------------------- 67% | Mutant 32% | Scavenger-Mutant Dominant Class ---------------- Mutant | -10/Materials Scavenger-Mutant | -10/Subcaves Resources | -11 -10 -10 ----------- Run | Yrd Mat Sub Matter Collected 725 | 184 197 344 Remotely . | . . . Salvage Created 767 | 20 441 306 Parts 53 | 2 30 21 Haulers Intercepted 1 | . 1 . Recyclers Shooed 1 | . 1 . Parts Field Recycled . | . . . Retrieved Matter . | . . . Parts Self-Destructed 6 | . . 6 Prevented . | . . . Parts Restored . | . . . Kills | -11 -10 -10 ------- Run | Yrd Mat Sub Combat Hostiles Destroyed 19 | . 11 8 Guns 19 | . 11 8 Classes Destroyed 6 | 1 4 1 Tunneler 1 | 1 . . Hauler 1 | . 1 . Watcher 1 | . 1 . Swarmer 3 | . 3 . Grunt 10 | . 8 2 Subdweller 6 | . . 6 Best Kill Streak 3 | 1 3 2 Combat Bots Only 3 | . 3 2 Max Kills in Single Turn 1 | 1 1 1 Gunslinging . | . . . Exploded . | . . . Melee . | . . . Uniques/NPCs Destroyed . | . . . Combat | -11 -10 -10 -------- Run | Yrd Mat Sub Hostile Shots Fired 82 | . 52 30 Missed 21 | . 13 8 Hits 61 | . 39 22 Projectile 61 | . 39 22 AOE 2 | . . 2 Critical Strikes 1 | . . 1 Damage Taken 1496 | . 557 939 Core 335 | . 111 224 Absorbed by Shields . | . . . Regen/Repaired (Parts) 42 | . 42 . Core Remaining (%) 100 | 100 . . Volleys Fired 73 | 3 35 35 Largest 2 | 2 2 2 Hottest 100 | 100 100 83 Shots Fired 138 | 6 70 62 Gun 130 | 6 70 54 Cannon . | . . . Launcher 8 | . . 8 Special . | . . . Kinetic 79 | . 35 44 Thermal 51 | 6 35 10 Explosive 8 | . . 8 Electromagnetic . | . . . Robot Hit Streak 12 | 1 12 12 Robot Miss Streak 2 | 1 2 2 Penetration Max . | . . . Secondary Targets 2 | . 1 1 Max Gunslinging Chain 1 | . 1 1 Shots Hit Robots 97 | 3 49 45 Core Hits 40 | 1 24 15 Critical Kills 1 | . 1 . Critical Parts Destroyed . | . . . Critical Strikes 4 | . 4 . Burn 3 | . 3 . Destroy 1 | . 1 . Melee Attacks . | . . . Impact . | . . . Slashing . | . . . Piercing . | . . . Sneak Attacks . | . . . Combat Hostiles . | . . . Follow-up Attacks . | . . . Damage Inflicted 1379 | 37 613 729 Guns 1365 | 37 599 729 Cannons . | . . . Explosions . | . . . Melee . | . . . Ramming 14 | . 14 . Kinetic 772 | . 235 537 Thermal 593 | 37 364 192 Explosive . | . . . Electromagnetic . | . . . Impact . | . . . Slashing . | . . . Piercing . | . . . Highest Corruption 1 | . 1 1 Average Corruption 1 | . 1 1 Corruption Purged . | . . . Corruption Blocked . | . . . Effects 12 | . 7 5 Message Errors 5 | . 4 1 Matter Fused 4 | . 2 2 Energy Discharges 1 | . 1 . Data Loss (minor) 2 | . . 2 Overload Shots . | . . . Overflow Damage . | . . . Projectiles . | . . . Explosions . | . . . Melee . | . . . Knockbacks . | . . . Impact . | . . . Kinetic . | . . . Secondary . | . . . Self-Inflicted Damage 28 | . . 28 Shots 2 | . . 2 Rammed . | . . . Targets Rammed 7 | . 7 . Kicked 7 | . 7 . Crushed . | . . . Highest Temperature 255 | 81 255 28 Average Temperature 60 | 35 70 9 Received Heat Transfer 351 | . 225 126 Siege Activations . | . . . Martial Activations . | . . . Shielding Activations . | . . . Robots Disrupted . | . . . Combat Hostiles . | . . . Robots Corrupted . | . . . Combat Hostiles . | . . . Parts Fried . | . . . Impact Corruptions . | . . . Robots Melted . | . . . Combat Hostiles . | . . . Parts Melted 1 | . 1 . Heat Transferred 1631 | 111 1295 225 Parts Sabotaged . | . . . Parts Stolen . | . . . Parts Stripped . | . . . Power Chain Reactions . | . . . Alert | -11 -10 -10 ------- Run | Yrd Mat Sub Maximum Alert Level . | . . . Low Security (%) 100 | 100 100 . Level 1 . | . . . Level 2 . | . . . Level 3 . | . . . Level 4 . | . . . Level 5 . | . . . High Security . | . . . Max Security . | . . . Peak Influence 84 | 5 84 . Initial . | . . . Average 20 | 1 20 . Influence Increases 397 | 5 342 50 Destroy 0b10 Robot/C 260 | . 220 40 Destroy 0b10 Robot/NC 15 | 5 10 . Destroy Leader 54 | . 44 10 Successful Hack 37 | . 37 . Destroy Structure 1 | . 1 . Partial Spotted 15 | . 15 . Lose Combat Pursuer 15 | . 15 . Influence Decreases 397 | 5 342 50 Time Decay 358 | 5 313 40 Lost Part 39 | . 29 10 Squads Dispatched 1 | . 1 . Investigation 1 | . 1 . Extermination . | . . . Reinforcement . | . . . Assault . | . . . Garrison . | . . . Intercept . | . . . Searches Triggered . | . . . Construction Impeded . | . . . Haulers Reinforced . | . . . Active Scanning Responses . | . . . Cargo Convoy Interrupts . | . . . Stealth | -11 -10 -10 --------- Run | Yrd Mat Sub Distress Signals 1 | . 1 . Communications Jammed . | . . . Distress Signals . | . . . Times Spotted 24 | . 17 7 Peak Tracking Total 3 | . 3 2 Tactical Retreats 1 | . 1 . Traps | -11 -10 -10 ------- Run | Yrd Mat Sub Traps Triggered 2 | . 2 . Indirectly . | . . . Trap Hack Attempts . | . . . Triggered . | . . . Disarmed 1 | . 1 . Reprogrammed . | . . . Reused . | . . . Traps Extracted . | . . . Installed . | . . . Triggered . | . . . Machines | -11 -10 -10 ---------- Run | Yrd Mat Sub Machines Disabled . | . . . Max in Single Turn . | . . . Machines Repaired . | . . . Machines Dismantled . | . . . Machines Sabotaged . | . . . Overloaded Fab Kills . | . . . Hacking | -11 -10 -10 --------- Run | Yrd Mat Sub Machines Accessed 7 | . 7 . Terminals 6 | . 6 . Fabricators . | . . . Repair Stations 1 | . 1 . Recycling Units . | . . . Scanalyzers . | . . . Garrison Access . | . . . Total Hacks 25 | . 25 . Successful 14 | . 14 . Failed 10 | . 10 . Catastrophic 1 | . 1 . Database Lockouts 1 | . 1 . Manual 14 | . 14 . Terminals 20 | . 20 . Fabricators . | . . . Repair Stations 5 | . 5 . Recycling Units . | . . . Scanalyzers . | . . . Garrison Access . | . . . Terminal Hacks 6 | . 6 . Robot Analysis 2 | . 2 . Prototype ID Bank 1 | . 1 . Disarm Traps 1 | . 1 . Hauler Manifests 1 | . 1 . Registered Components 1 | . 1 . Fabricator Hacks . | . . . Repair Station Hacks 3 | . 3 . Scan Component 2 | . 2 . Repair 1 | . 1 . Recycling Unit Hacks . | . . . Scanalyzer . | . . . Garrison Access Hacks . | . . . Unauthorized Hacks 5 | . 5 . Terminals 5 | . 5 . Botnet 5 | . 5 . Fabricators . | . . . Repair Stations . | . . . Recycling Units . | . . . Scanalyzers . | . . . Garrison Access . | . . . Data Cores Recovered . | . . . Used . | . . . Hacking Detections 6 | . 6 . Full Trace Events . | . . . Feedback Events . | . . . Feedback Blocked . | . . . Robot Schematics Acquired . | . . . Robots Built . | . . . Authchips . | . . . Time . | . . . Total Robot Build Rating . | . . . Part Schematics Acquired . | . . . Parts Built . | . . . Authchips . | . . . Time . | . . . Total Part Build Rating . | . . . Part Studies Acquired . | . . . Parts Repaired 1 | . 1 . Time 26 | . 26 . Parts Recycled . | . . . Recycled Matter . | . . . Retrieved Matter . | . . . Retrieved Components . | . . . Parts Scanalyzed . | . . . Part Schematics Acquired . | . . . Parts Damaged . | . . . Bothacking | -11 -10 -10 ------------ Run | Yrd Mat Sub Used RIF Installer . | . . . Robots Hacked . | . . . Non-combat . | . . . Combat . | . . . Robot Hacks Applied . | . . . Relay Couplers Released . | . . . Fabnet Peak Effective % . | . . . Robots Rewired . | . . . Allies Hacked . | . . . Hacks Repelled . | . . . Allies | -11 -10 -10 -------- Run | Yrd Mat Sub Total Allies . | . . . Largest Group . | . . . Highest-Rated Group . | . . . Highest-Rated Ally . | . . . Total Orders . | . . . Ally Attacks . | . . . Total Damage . | . . . Kills . | . . . Allies Corrupted . | . . . Allies Melted . | . . . Intel | -11 -10 -10 ------- Run | Yrd Mat Sub Active Infowar (turns) 227 | . . 227 Optics 227 | . . 227 Robot Analysis Total 2 | . 2 . Derelict Logs Recovered 1 | . . 1 Drone Launches . | . . . Drone Recoveries . | . . . Exploration | -11 -10 -10 ------------- Run | Yrd Mat Sub Turns Passed 2445 | 26 1394 1025 Spaces Moved 1322 | 13 800 509 Core . | . . . Treads . | . . . Legs 1322 | 13 800 509 Wheels . | . . . Hover . | . . . Flight . | . . . Fastest Speed 120 | 120 120 130 Average Speed 158 | 120 149 174 Slowest Speed 260 | 120 260 190 Overloaded Moves . | . . . Propulsion Burnouts . | . . . Robots Hopped . | . . . Potential Cave-ins . | . . . Cave-ins Triggered 1 | . . 1 Exploration Rate (%) 47 | 3 98 41 Regions Visited 2 Branch Regions 1 Pre-discovered Areas . | . . . Known Exits Taken . | . . . Unknown Exits Taken 2 | 1 1 . Scrap Searched 4 | . . 4 Spaces Dug 8 | . . 8 Terrain Destroyed 54 | . . 54 Melee . | . . . Projectile . | . . . AOE 54 | . . 54 Terrain Rammed . | . . . Walls Destroyed . | . . . Machines Disabled . | . . . Actions | -11 -10 -10 --------- Run | Yrd Mat Sub Total 1552 | 19 939 594 Wait 81 | . 59 22 Move 1320 | 12 799 509 Hop . | . . . Pick Up 20 | . 14 6 Fast Attach 5 | . 4 1 Attach 4 | . 2 2 Detach 2 | . 2 . Swap 17 | . 7 10 Drop 23 | 4 10 9 Fire 73 | 3 35 35 Melee . | . . . Ram . | . . . Kick 7 | . 7 . Crush . | . . . Escape Stasis . | . . . Rewire . | . . . Trap . | . . . Miscellaneous . | . . . Route ------- -11/Scrapyard -10/Materials (discovered 6 exits: [*Mat x3] / [*Min x2] / [*Sub]) -10/Subcaves History --------- Turn | Location | Event 6 | -11/Scrapyard | Discovered new exit (range 3) 27 | -11/Scrapyard | Entered Materials 121 | -10/Materials | Discovered new exit (range 10) 152 | -10/Materials | Discovered new exit (range 9) 213 | -10/Materials | Repaired Aluminum Leg 304 | -10/Materials | Build established: Mutant 464 | -10/Materials | Central database locked down 594 | -10/Materials | Discovered new exit (range 16) 623 | -10/Materials | Discovered new exit (range 7) 688 | -10/Materials | Discovered new exit (range 11) 1129 | -10/Materials | Discovered new exit (range 14) 1421 | -10/Materials | Entered Subcaves 1435 | -10/Subcaves | Learned 2 Materials zone layouts 1493 | -10/Subcaves | Build established: Scavenger-Mutant 1529 | -10/Subcaves | Core integrity fell below 50% 1719 | -10/Subcaves | Shifting Twisted Machinery released Barrage Gun 1884 | -10/Subcaves | Shifting Twisted Machinery released Sub. Beam Cannon 2332 | -10/Subcaves | A swath of the cavern ceiling suddenly collapsed 2447 | -10/Subcaves | Crushed by falling debris 2447 | -10/Subcaves | Smashed by cave-in Last Messages --------------- 02263_ Acquired 16 matter. 02271_ Acquired 4 matter. 02289_ System corrupted: Component data lost. 02305_ Dropped Broken Sub. Power Source. 02305_ Acquired Mak. Power Source. 02305_ Dropped Ion Engine. 02306_ Acquired Ion Engine. 02307_ Dropped Ion Engine. 02308_ Acquired Broken Sub. Power Source. 02332_ 14 Matter crushed. A swath of the cavern ceiling suddenly collapses. 02347_ Sub. Power Source shoots sparks and powers down. 02364_ GO-YJQ(R) destroyed. 02366_ Acquired 18 matter. 02447_ The unstable cave ceiling collapses. 02447_ Crushed by falling debris. 02447_ Autogun destroyed. 02447_ System corrupted by crushing effect (+1). 02447_ Aluminum Leg destroyed. 02447_ System corrupted by crushing effect (+5). Map ----- +----------------------------------------------------+ | ??????????????????????? ## #?????????## &%! ## | | ??????????????????????#" # ??????????# ### | | ??????????????????????? ??# "" ##? | | ???????????????????????" # #??# &""" ## | | ???????????????????????? % ###??#=%* "" ## # | | ???????????????????????? ### "" ### | | ????????????????????????? ? ### ""## | | ???????????????????????????? ???#####?#""" | | ???????????????????????????? # #### ?"" " ## | | ???????????????????????????? ## #?###" ## | | ???????????????????????????? #? ##?##" ## | | ????????????????????????????# ##???# ### "" | | ???????????????????####????## #????# | | ??????????????????## ##???? #???## | | ??????????????????# ###### ###### | | ??????????????????# ## # ## % %% | | ??????????????????# ## # ### | | ??????????????????# "#" ## #?## # | | ??????????????????#!! ### ##" #### #??###### | | ??????????????????#[%#####?# ####"""#?# #??????? | | ??????????????????##&## ##########""#?## ##??????? | | ??????????????????# #????"#""""#?# "???????? | | ??????????????????## #????#"##"#"" ""???????? | | ???????????????????# % ######%###""## "??????? | | ???????????????????## # ##" # ?????? | | ????????????????????### @ # #?######???? | | ??????????????????????# # #??##???????## | | ??????????????????????## ## ## #???????????# | | ???????????????????????############"##???????????# | | ????????????????????????????????? ""#???????????? | | ????????????????????????????????? ###???????????? | | ?????????????????????????????????# #????????????? | | ?????????????????????????????????# #????????????? | | ?????????????????????????????????% #????????????? | | ?????????????????????????????????### ????????????? | | ???????????????????????????????????? ????????????? | | ???????????????????????????????????? ????????????? | | ????????????????????????????????????#????????????? | | ?????????????????????????????????????????????????? | | ?????????????????????????????????????????????????? | | ?????????????????????????????????????????????????? | | ?????????????????????????????????????????????????? | | ?????????????????????????????????????????????????? | | ?????????????????????????????????????????????????? | | ?????????????????????????????????????????????????? | | ?????????????????????????????????????????????????? | | #????????????????????????????????????????????????? | | ##???????????????????????????????????????????????? | | ####????????????????????????????????????????????? | | ##???????????????????????????????????????????? | +----------------------------------------------------+ Best States ------------- Heat Dissipation 35 Energy Generation 15 Energy Capacity 250 Matter Stores 300 Matter Capacity 300 Sight Range 21 Terrain Scan Density 10 Armor Coverage 225 Evasion (%) 55 Item Schematics ----------------- None Robot Schematics ------------------ None Fabricated ------------ Nothing Repaired ---------- Aluminum Leg | 53% | -10/Materials Studied --------- None Alien Tech Used ----------------- None Achievements -------------- None Challenges ------------ None Game ------ Seed ArmoredMachineSpiker Manual? 0 Play Time 00:19:39 Cumulative 55.4 hours Start 2026.03.24 @ 18:59:14 End 2026.03.24 @ 19:20:02 Sessions 1 Manual Loads 0 Difficulty Rogue Special Mode None Game No. 58 Rogue 58 Adventurer 0 Explorer 0 Win Type - Total 1 Types 1/0/0/0/0/0/0/0/0/0 Lore% 47 Gallery% 36 Achievement% 34 Wizard Run 0 Options --------- Layout 0 ASCII 0 Keyboard 1 Movement Arrows Keybinds 0 Fullscreen 2 Font 18/Terminus Map View 76x50 Zoom Use 0% Tactical HUD 1 Map Filters NONE Filters NONE Steam 1 RUN: f35e0efd-ae33-4d7f-98e4-035cb15ddf0f